[Event "Titled Tuesday Blitz January 17 Early 2023"]
[White "Maksimenko, Viktor"]
[Black "Garv Gaur"]
[WhiteFideId "13710478"]
[BlackFideId "45030839"]
[WhiteElo "2196"]
[BlackElo "2006"]
[Result "0-1"]
[Round "11"]
[TimeControl "180+2"]
[Date "2023.01.17"]
[WhiteClock "0:01:43"]
[BlackClock "0:02:20"]

1. d4 {[%clk 0:03:00]}  Nf6 {[%clk 0:02:59]} 2. c4 {[%clk 0:03:00]}  e6 {[%clk 0:02:59]} 3. Nf3 {[%clk 0:03:01]}  d5 {[%clk 0:02:58]} 4. g3 {[%clk 0:03:01]}  Bb4+ {[%clk 0:02:58]} 5. Qd2 {[%clk 0:03:01]}  Bxd2+ {[%clk 0:02:54]} 6. Nbxd2 {[%clk 0:02:33]}  O-O {[%clk 0:02:53]} 7. Bg2 {[%clk 0:02:27]}  b6 {[%clk 0:02:52]} 8. O-O {[%clk 0:02:26]}  Bb7 {[%clk 0:02:50]} 9. b3 {[%clk 0:02:25]}  c5 {[%clk 0:02:50]} 10. Bb2 {[%clk 0:02:19]}  Nc6 {[%clk 0:02:47]} 11. dxc5 {[%clk 0:02:19]}  bxc5 {[%clk 0:02:47]} 12. e3 {[%clk 0:02:19]}  d4 {[%clk 0:02:46]} 13. exd4 {[%clk 0:02:15]}  Nxd4 {[%clk 0:02:46]} 14. Bxd4 {[%clk 0:02:13]}  cxd4 {[%clk 0:02:46]} 15. Rad1 {[%clk 0:02:13]}  Qb6 {[%clk 0:02:41]} 16. Rfe1 {[%clk 0:02:07]}  Rfd8 {[%clk 0:02:40]} 17. h4 {[%clk 0:02:06]}  a5 {[%clk 0:02:37]} 18. Re5 {[%clk 0:02:06]}  Bc6 {[%clk 0:02:33]} 19. Rb1 {[%clk 0:01:58]}  d3 {[%clk 0:02:30]} 20. Bh3 {[%clk 0:01:50]}  a4 {[%clk 0:02:22]} 21. b4 {[%clk 0:01:49]}  Bxf3 {[%clk 0:02:20]} 22. Nxf3 {[%clk 0:01:47]}  d2 {[%clk 0:02:20]} 23. Rd1 {[%clk 0:01:43]}  Qxb4 {[%clk 0:02:20]} 0-1


[Site "https://www.chess.com"]

[Event "Titled Tuesday Blitz January 17 Early 2023"]
[White "Bazarov, Konstantin"]
[Black "Gutkin, Ilya"]
[WhiteFideId "4137000"]
[BlackFideId "16203470"]
[WhiteElo "2235"]
[BlackElo "2273"]
[Result "1-0"]
[Round "11"]
[TimeControl "180+2"]
[Date "2023.01.17"]
[WhiteClock "0:00:26"]
[BlackClock "0:00:03"]

1. c4 {[%clk 0:03:00]}  e6 {[%clk 0:02:43]} 2. Nf3 {[%clk 0:02:58]}  d5 {[%clk 0:02:41]} 3. e3 {[%clk 0:02:58]}  Nf6 {[%clk 0:02:38]} 4. b3 {[%clk 0:02:57]}  c5 {[%clk 0:02:35]} 5. Bb2 {[%clk 0:02:56]}  Nc6 {[%clk 0:02:35]} 6. cxd5 {[%clk 0:02:56]}  exd5 {[%clk 0:02:35]} 7. Bb5 {[%clk 0:02:51]}  Bg4 {[%clk 0:02:25]} 8. Bxc6+ {[%clk 0:02:49]}  bxc6 {[%clk 0:02:25]} 9. h3 {[%clk 0:02:43]}  Bh5 {[%clk 0:02:22]} 10. d3 {[%clk 0:02:43]}  Be7 {[%clk 0:02:15]} 11. Nbd2 {[%clk 0:02:43]}  O-O {[%clk 0:02:15]} 12. Qc2 {[%clk 0:02:42]}  Bg6 {[%clk 0:02:06]} 13. Ne5 {[%clk 0:02:33]}  Nd7 {[%clk 0:02:03]} 14. Nxc6 {[%clk 0:02:32]}  Qe8 {[%clk 0:02:01]} 15. Nxe7+ {[%clk 0:02:26]}  Qxe7 {[%clk 0:02:02]} 16. O-O {[%clk 0:02:24]}  Rac8 {[%clk 0:01:48]} 17. Rac1 {[%clk 0:02:20]}  f6 {[%clk 0:01:33]} 18. e4 {[%clk 0:02:07]}  Qe6 {[%clk 0:01:21]} 19. Rfe1 {[%clk 0:02:03]}  Rfd8 {[%clk 0:01:16]} 20. f4 {[%clk 0:02:02]}  Qa6 {[%clk 0:01:13]} 21. Nf3 {[%clk 0:01:50]}  Nb6 {[%clk 0:01:01]} 22. f5 {[%clk 0:01:43]}  Bf7 {[%clk 0:01:00]} 23. e5 {[%clk 0:01:43]}  fxe5 {[%clk 0:00:55]} 24. Nxe5 {[%clk 0:01:42]}  Nd7 {[%clk 0:00:49]} 25. Nxf7 {[%clk 0:01:30]}  Kxf7 {[%clk 0:00:48]} 26. Re6 {[%clk 0:01:28]}  Qb7 {[%clk 0:00:45]} 27. Rce1 {[%clk 0:01:27]}  Nf6 {[%clk 0:00:43]} 28. Bxf6 {[%clk 0:01:23]}  gxf6 {[%clk 0:00:44]} 29. Qe2 {[%clk 0:01:23]}  Rd7 {[%clk 0:00:27]} 30. Qh5+ {[%clk 0:01:16]}  Kg7 {[%clk 0:00:27]} 31. R1e3 {[%clk 0:01:10]}  Kh8 {[%clk 0:00:20]} 32. Rxf6 {[%clk 0:01:05]}  Rg7 {[%clk 0:00:18]} 33. Rfe6 {[%clk 0:01:02]}  Rcg8 {[%clk 0:00:18]} 34. g4 {[%clk 0:00:59]}  d4 {[%clk 0:00:17]} 35. R3e4 {[%clk 0:00:58]}  Qc7 {[%clk 0:00:17]} 36. Kg2 {[%clk 0:00:55]}  Qa5 {[%clk 0:00:16]} 37. Re2 {[%clk 0:00:48]}  Qc3 {[%clk 0:00:16]} 38. f6 {[%clk 0:00:48]}  Rg5 {[%clk 0:00:13]} 39. Qh4 {[%clk 0:00:37]}  R5g6 {[%clk 0:00:06]} 40. Re7 {[%clk 0:00:33]}  h6 {[%clk 0:00:04]} 41. f7 {[%clk 0:00:32]}  Rf8 {[%clk 0:00:04]} 42. Re8 {[%clk 0:00:31]}  Kg7 {[%clk 0:00:03]} 43. Rxf8 {[%clk 0:00:27]}  Kxf8 {[%clk 0:00:04]} 44. Qe7+ {[%clk 0:00:26]}  Kg7 {[%clk 0:00:03]} 45. f8=Q# {[%clk 0:00:26]} 1-0


[Site "https://www.chess.com"]

[Event "Titled Tuesday Blitz January 17 Early 2023"]
[White "Padmini, Rout"]
[Black "Houska, Jovanka"]
[WhiteFideId "5029295"]
[BlackFideId "405094"]
[WhiteElo "2375"]
[BlackElo "2338"]
[Result "1/2-1/2"]
[Round "11"]
[TimeControl "180+2"]
[Date "2023.01.17"]
[WhiteClock "0:00:14"]
[BlackClock "0:00:16"]

1. b3 {[%clk 0:02:53]}  d5 {[%clk 0:02:58]} 2. Bb2 {[%clk 0:02:34]}  c6 {[%clk 0:02:56]} 3. e3 {[%clk 0:02:34]}  Bf5 {[%clk 0:02:51]} 4. Nf3 {[%clk 0:02:34]}  e6 {[%clk 0:02:51]} 5. c4 {[%clk 0:02:29]}  Nf6 {[%clk 0:02:50]} 6. Nc3 {[%clk 0:02:29]}  h6 {[%clk 0:02:48]} 7. d3 {[%clk 0:02:30]}  Nbd7 {[%clk 0:02:47]} 8. Be2 {[%clk 0:02:30]}  Be7 {[%clk 0:02:44]} 9. O-O {[%clk 0:02:31]}  O-O {[%clk 0:02:44]} 10. Rc1 {[%clk 0:02:25]}  a5 {[%clk 0:02:41]} 11. Nd4 {[%clk 0:02:21]}  Bh7 {[%clk 0:02:40]} 12. f4 {[%clk 0:02:21]}  e5 {[%clk 0:02:17]} 13. fxe5 {[%clk 0:02:16]}  Nxe5 {[%clk 0:02:18]} 14. Nf5 {[%clk 0:02:13]}  Re8 {[%clk 0:01:59]} 15. cxd5 {[%clk 0:02:12]}  cxd5 {[%clk 0:01:55]} 16. Nb5 {[%clk 0:02:09]}  Nc6 {[%clk 0:01:49]} 17. Nbd4 {[%clk 0:01:48]}  Nxd4 {[%clk 0:01:45]} 18. Bxd4 {[%clk 0:01:49]}  a4 {[%clk 0:01:32]} 19. Nxe7+ {[%clk 0:01:40]}  Qxe7 {[%clk 0:01:31]} 20. bxa4 {[%clk 0:01:39]}  Bg6 {[%clk 0:01:26]} 21. Qb3 {[%clk 0:01:37]}  Qd7 {[%clk 0:01:04]} 22. Bd1 {[%clk 0:01:36]}  Ng4 {[%clk 0:01:00]} 23. Bxg4 {[%clk 0:01:34]}  Qxg4 {[%clk 0:01:01]} 24. Qxd5 {[%clk 0:01:22]}  Rxa4 {[%clk 0:00:53]} 25. Rc7 {[%clk 0:01:20]}  Qe6 {[%clk 0:00:34]} 26. Qxe6 {[%clk 0:00:57]}  Rxe6 {[%clk 0:00:35]} 27. h4 {[%clk 0:00:50]}  h5 {[%clk 0:00:30]} 28. Rf2 {[%clk 0:00:46]}  b5 {[%clk 0:00:26]} 29. Rb7 {[%clk 0:00:33]}  b4 {[%clk 0:00:26]} 30. Rc2 {[%clk 0:00:27]}  Bxd3 {[%clk 0:00:24]} 31. Rc8+ {[%clk 0:00:27]}  Kh7 {[%clk 0:00:24]} 32. Rxf7 {[%clk 0:00:27]}  Rg6 {[%clk 0:00:20]} 33. Rcc7 {[%clk 0:00:25]}  Rxa2 {[%clk 0:00:18]} 34. Rxg7+ {[%clk 0:00:25]}  Rxg7 {[%clk 0:00:18]} 35. Rxg7+ {[%clk 0:00:26]}  Kh6 {[%clk 0:00:19]} 36. Rb7 {[%clk 0:00:20]}  Rxg2+ {[%clk 0:00:16]} 37. Kxg2 {[%clk 0:00:17]}  Be4+ {[%clk 0:00:17]} 38. Kg3 {[%clk 0:00:17]}  Bxb7 {[%clk 0:00:18]} 39. Kf4 {[%clk 0:00:18]}  b3 {[%clk 0:00:15]} 40. Bb2 {[%clk 0:00:17]}  Kg6 {[%clk 0:00:16]} 41. e4 {[%clk 0:00:17]}  Kf7 {[%clk 0:00:16]} 42. Kf5 {[%clk 0:00:15]}  Bc8+ {[%clk 0:00:15]} 43. Kg5 {[%clk 0:00:15]}  Bg4 {[%clk 0:00:15]} 44. e5 {[%clk 0:00:14]}  Ke6 {[%clk 0:00:15]} 45. Kf4 {[%clk 0:00:15]}  Bd1 {[%clk 0:00:15]} 46. Kg5 {[%clk 0:00:13]}  Bg4 {[%clk 0:00:15]} 47. Kf4 {[%clk 0:00:13]}  Bd1 {[%clk 0:00:16]} 48. Kg5 {[%clk 0:00:14]}  Bg4 {[%clk 0:00:16]} 1/2-1/2


[Site "https://www.chess.com"]

[Event "Titled Tuesday Blitz January 17 Early 2023"]
[White "Fathy, Elameir"]
[Black "Shuvalov, Evgenij"]
[WhiteFideId "10600396"]
[BlackFideId "4187237"]
[WhiteElo "2300"]
[BlackElo "2038"]
[Result "0-1"]
[Round "11"]
[TimeControl "180+2"]
[Date "2023.01.17"]
[WhiteClock "0:00:03"]
[BlackClock "0:01:02"]

1. d4 {[%clk 0:03:00]}  Nf6 {[%clk 0:02:59]} 2. c4 {[%clk 0:03:01]}  c5 {[%clk 0:02:58]} 3. d5 {[%clk 0:03:00]}  b5 {[%clk 0:02:58]} 4. cxb5 {[%clk 0:03:00]}  a6 {[%clk 0:02:59]} 5. bxa6 {[%clk 0:03:01]}  Bxa6 {[%clk 0:02:59]} 6. Nc3 {[%clk 0:03:02]}  d6 {[%clk 0:02:59]} 7. e4 {[%clk 0:03:03]}  Bxf1 {[%clk 0:02:59]} 8. Kxf1 {[%clk 0:03:04]}  g6 {[%clk 0:03:00]} 9. g3 {[%clk 0:03:04]}  Bg7 {[%clk 0:03:00]} 10. Kg2 {[%clk 0:03:05]}  Nbd7 {[%clk 0:02:57]} 11. Nf3 {[%clk 0:03:06]}  O-O {[%clk 0:02:57]} 12. Qe2 {[%clk 0:03:06]}  Qb6 {[%clk 0:02:54]} 13. a4 {[%clk 0:03:03]}  Rfb8 {[%clk 0:02:50]} 14. Nb5 {[%clk 0:02:53]}  Ne8 {[%clk 0:02:44]} 15. Bg5 {[%clk 0:02:40]}  Rb7 {[%clk 0:02:35]} 16. Nd2 {[%clk 0:02:22]}  h6 {[%clk 0:02:23]} 17. Nc4 {[%clk 0:02:20]}  Qa6 {[%clk 0:02:19]} 18. Bd2 {[%clk 0:01:46]}  Ne5 {[%clk 0:02:08]} 19. Bc3 {[%clk 0:01:32]}  Nc7 {[%clk 0:02:01]} 20. Nxe5 {[%clk 0:01:23]}  Bxe5 {[%clk 0:01:56]} 21. Bxe5 {[%clk 0:01:23]}  dxe5 {[%clk 0:01:57]} 22. Ra3 {[%clk 0:00:54]}  Rab8 {[%clk 0:01:51]} 23. Qd2 {[%clk 0:00:29]}  Nxb5 {[%clk 0:01:35]} 24. axb5 {[%clk 0:00:29]}  Qxb5 {[%clk 0:01:36]} 25. Qxh6 {[%clk 0:00:30]}  Qe2 {[%clk 0:01:36]} 26. Re3 {[%clk 0:00:24]}  Qd2 {[%clk 0:01:32]} 27. Qh4 {[%clk 0:00:04]}  Rxb2 {[%clk 0:01:28]} 28. Rf3 {[%clk 0:00:05]}  R8b3 {[%clk 0:01:11]} 29. Rxb3 {[%clk 0:00:02]}  Qxf2+ {[%clk 0:01:10]} 30. Kh3 {[%clk 0:00:02]}  Rxb3 {[%clk 0:01:10]} 31. Qxe7 {[%clk 0:00:03]}  Qf3 {[%clk 0:01:06]} 32. Qe8+ {[%clk 0:00:02]}  Kh7 {[%clk 0:01:05]} 33. Qd8 {[%clk 0:00:02]}  Qxh1 {[%clk 0:01:02]} 34. Qh4+ {[%clk 0:00:02]}  Kg7 {[%clk 0:01:03]} 35. Qe7 {[%clk 0:00:02]}  Qf1+ {[%clk 0:01:02]} 36. Kh4 {[%clk 0:00:03]}  Qf6+ {[%clk 0:01:02]} 0-1


[Site "https://www.chess.com"]

[Event "Titled Tuesday Blitz January 17 Early 2023"]
[White "Carrasco Miranda, Andres"]
[Black "Kukula, Pawel"]
[WhiteFideId "3405990"]
[BlackFideId "1115081"]
[WhiteElo "2240"]
[BlackElo "2135"]
[Result "1-0"]
[Round "11"]
[TimeControl "180+2"]
[Date "2023.01.17"]
[WhiteClock "0:00:11"]
[BlackClock "0:00:07"]

1. d4 {[%clk 0:02:56]}  Nf6 {[%clk 0:02:59]} 2. c4 {[%clk 0:02:54]}  g6 {[%clk 0:02:59]} 3. g3 {[%clk 0:02:54]}  Bg7 {[%clk 0:03:00]} 4. Bg2 {[%clk 0:02:54]}  O-O {[%clk 0:03:00]} 5. Nc3 {[%clk 0:02:54]}  d6 {[%clk 0:03:01]} 6. Nf3 {[%clk 0:02:54]}  Nc6 {[%clk 0:03:00]} 7. O-O {[%clk 0:02:54]}  Bg4 {[%clk 0:03:00]} 8. h3 {[%clk 0:02:48]}  Bxf3 {[%clk 0:02:59]} 9. exf3 {[%clk 0:02:49]}  Nd7 {[%clk 0:03:00]} 10. Be3 {[%clk 0:02:48]}  Na5 {[%clk 0:02:29]} 11. b3 {[%clk 0:02:42]}  c5 {[%clk 0:02:20]} 12. Rc1 {[%clk 0:02:38]}  Nc6 {[%clk 0:02:13]} 13. dxc5 {[%clk 0:02:33]}  dxc5 {[%clk 0:02:11]} 14. f4 {[%clk 0:02:28]}  Rc8 {[%clk 0:02:10]} 15. Qd2 {[%clk 0:02:09]}  e6 {[%clk 0:01:31]} 16. Rfd1 {[%clk 0:02:05]}  Nd4 {[%clk 0:01:29]} 17. Nb5 {[%clk 0:02:02]}  Qb6 {[%clk 0:01:01]} 18. Nxd4 {[%clk 0:01:56]}  cxd4 {[%clk 0:00:55]} 19. Bxd4 {[%clk 0:01:56]}  Bxd4 {[%clk 0:00:55]} 20. Qxd4 {[%clk 0:01:56]}  Nc5 {[%clk 0:00:56]} 21. Qf6 {[%clk 0:01:50]}  a5 {[%clk 0:00:48]} 22. h4 {[%clk 0:01:50]}  Rfd8 {[%clk 0:00:41]} 23. h5 {[%clk 0:01:49]}  gxh5 {[%clk 0:00:30]} 24. Qg5+ {[%clk 0:01:28]}  Kh8 {[%clk 0:00:22]} 25. Qxh5 {[%clk 0:01:26]}  Nd3 {[%clk 0:00:19]} 26. Rxd3 {[%clk 0:01:25]}  Rxd3 {[%clk 0:00:20]} 27. Be4 {[%clk 0:01:25]}  Rxg3+ {[%clk 0:00:19]} 28. Kf1 {[%clk 0:01:19]}  Rg7 {[%clk 0:00:16]} 29. Rd1 {[%clk 0:01:14]}  Rcg8 {[%clk 0:00:11]} 30. Rd3 {[%clk 0:01:09]}  f5 {[%clk 0:00:08]} 31. Bf3 {[%clk 0:01:05]}  a4 {[%clk 0:00:08]} 32. Qh4 {[%clk 0:00:51]}  axb3 {[%clk 0:00:06]} 33. axb3 {[%clk 0:00:51]}  Qb4 {[%clk 0:00:04]} 34. Qf6 {[%clk 0:00:46]}  Qe7 {[%clk 0:00:04]} 35. Qe5 {[%clk 0:00:46]}  Rf8 {[%clk 0:00:03]} 36. Rd6 {[%clk 0:00:43]}  Qf6 {[%clk 0:00:01]} 37. Rxe6 {[%clk 0:00:34]}  Qxe5 {[%clk 0:00:01]} 38. fxe5 {[%clk 0:00:35]}  Rd7 {[%clk 0:00:01]} 39. Rd6 {[%clk 0:00:35]}  Rxd6 {[%clk 0:00:01]} 40. exd6 {[%clk 0:00:36]}  b6 {[%clk 0:00:01]} 41. b4 {[%clk 0:00:36]}  Kg7 {[%clk 0:00:01]} 42. c5 {[%clk 0:00:36]}  bxc5 {[%clk 0:00:02]} 43. bxc5 {[%clk 0:00:37]}  Kf6 {[%clk 0:00:03]} 44. Bd5 {[%clk 0:00:34]}  Ke5 {[%clk 0:00:03]} 45. Bb7 {[%clk 0:00:31]}  Rd8 {[%clk 0:00:02]} 46. f4+ {[%clk 0:00:17]}  Ke6 {[%clk 0:00:02]} 47. Kf2 {[%clk 0:00:13]}  Rg8 {[%clk 0:00:02]} 48. Ba6 {[%clk 0:00:10]}  Rg7 {[%clk 0:00:01]} 49. Bc4+ {[%clk 0:00:10]}  Kd7 {[%clk 0:00:02]} 50. Bb5+ {[%clk 0:00:11]}  Ke6 {[%clk 0:00:02]} 51. d7 {[%clk 0:00:11]}  Rxd7 {[%clk 0:00:01]} 52. Bxd7+ {[%clk 0:00:11]}  Kxd7 {[%clk 0:00:02]} 53. Kg3 {[%clk 0:00:11]}  Kc6 {[%clk 0:00:02]} 54. Kh4 {[%clk 0:00:11]}  h6 {[%clk 0:00:02]} 55. Kh5 {[%clk 0:00:11]}  Kxc5 {[%clk 0:00:03]} 56. Kxh6 {[%clk 0:00:12]}  Kd5 {[%clk 0:00:03]} 57. Kg6 {[%clk 0:00:12]}  Ke4 {[%clk 0:00:03]} 58. Kg5 {[%clk 0:00:12]}  Kd5 {[%clk 0:00:04]} 59. Kxf5 {[%clk 0:00:13]}  Kd6 {[%clk 0:00:05]} 60. Kg6 {[%clk 0:00:13]}  Ke7 {[%clk 0:00:06]} 61. f5 {[%clk 0:00:12]}  Kf8 {[%clk 0:00:06]} 62. Kf6 {[%clk 0:00:13]}  Kg8 {[%clk 0:00:07]} 63. Ke7 {[%clk 0:00:13]}  Kg7 {[%clk 0:00:07]} 64. f6+ {[%clk 0:00:14]}  Kh7 {[%clk 0:00:08]} 65. f7 {[%clk 0:00:14]}  Kg6 {[%clk 0:00:07]} 66. f8=Q {[%clk 0:00:14]}  Kh7 {[%clk 0:00:08]} 67. Qf4 {[%clk 0:00:13]}  Kg6 {[%clk 0:00:07]} 68. Qg4+ {[%clk 0:00:12]}  Kh6 {[%clk 0:00:06]} 69. Kf7 {[%clk 0:00:11]}  Kh7 {[%clk 0:00:07]} 70. Qh5# {[%clk 0:00:11]} 1-0


[Site "https://www.chess.com"]

[Event "Titled Tuesday Blitz January 17 Early 2023"]
[White "Sreyas Payyappat"]
[Black "Ovezdurdyyeva, Jemal"]
[WhiteFideId "46674969"]
[BlackFideId "14001888"]
[WhiteElo "2076"]
[BlackElo "2078"]
[Result "0-1"]
[Round "11"]
[TimeControl "180+2"]
[Date "2023.01.17"]
[WhiteClock "0:02:02"]
[BlackClock "0:01:02"]

1. e4 {[%clk 0:03:00]}  d6 {[%clk 0:02:59]} 2. d4 {[%clk 0:02:59]}  Nf6 {[%clk 0:03:00]} 3. Nc3 {[%clk 0:02:59]}  g6 {[%clk 0:03:00]} 4. Be3 {[%clk 0:02:59]}  c6 {[%clk 0:03:01]} 5. Nf3 {[%clk 0:02:58]}  b5 {[%clk 0:03:01]} 6. Bd3 {[%clk 0:02:57]}  Bg7 {[%clk 0:03:00]} 7. Qd2 {[%clk 0:02:57]}  h5 {[%clk 0:02:54]} 8. O-O-O {[%clk 0:02:56]}  b4 {[%clk 0:02:43]} 9. Ne2 {[%clk 0:02:55]}  a5 {[%clk 0:02:42]} 10. e5 {[%clk 0:02:54]}  Nd5 {[%clk 0:02:40]} 11. Be4 {[%clk 0:02:51]}  Nxe3 {[%clk 0:02:39]} 12. fxe3 {[%clk 0:02:51]}  Be6 {[%clk 0:02:26]} 13. Nf4 {[%clk 0:02:48]}  Bxa2 {[%clk 0:02:24]} 14. e6 {[%clk 0:02:41]}  f5 {[%clk 0:02:10]} 15. Bd3 {[%clk 0:02:36]}  Rg8 {[%clk 0:01:53]} 16. Nxg6 {[%clk 0:02:30]}  Bxe6 {[%clk 0:01:51]} 17. Nf4 {[%clk 0:02:30]}  Bd7 {[%clk 0:01:39]} 18. Nh4 {[%clk 0:02:22]}  e6 {[%clk 0:01:34]} 19. Qe2 {[%clk 0:02:17]}  Qxh4 {[%clk 0:01:31]} 20. g3 {[%clk 0:02:14]}  Qe7 {[%clk 0:01:23]} 21. Qxh5+ {[%clk 0:02:13]}  Kd8 {[%clk 0:01:22]} 22. Bc4 {[%clk 0:02:07]}  d5 {[%clk 0:01:17]} 23. Ba2 {[%clk 0:02:05]}  Na6 {[%clk 0:01:14]} 24. Qh7 {[%clk 0:02:02]}  Rh8 {[%clk 0:01:02]} 0-1


[Site "https://www.chess.com"]

[Event "Titled Tuesday Blitz January 17 Early 2023"]
[White "Todorovic, Bojan"]
[Black "Jimenez, Joaquin"]
[WhiteFideId "917087"]
[BlackFideId "109860"]
[WhiteElo "2195"]
[BlackElo "2195"]
[Result "0-1"]
[Round "11"]
[TimeControl "180+2"]
[Date "2023.01.17"]
[WhiteClock "0:00:02"]
[BlackClock "0:00:25"]

1. d4 {[%clk 0:02:59]}  Nf6 {[%clk 0:02:58]} 2. c4 {[%clk 0:02:58]}  g6 {[%clk 0:02:56]} 3. Nc3 {[%clk 0:02:57]}  Bg7 {[%clk 0:02:53]} 4. e4 {[%clk 0:02:56]}  d6 {[%clk 0:02:53]} 5. Nf3 {[%clk 0:02:54]}  O-O {[%clk 0:02:49]} 6. Be2 {[%clk 0:02:54]}  e5 {[%clk 0:02:49]} 7. O-O {[%clk 0:02:53]}  Nc6 {[%clk 0:02:48]} 8. d5 {[%clk 0:02:52]}  Ne7 {[%clk 0:02:49]} 9. Ne1 {[%clk 0:02:52]}  Nd7 {[%clk 0:02:48]} 10. Be3 {[%clk 0:02:52]}  f5 {[%clk 0:02:49]} 11. f3 {[%clk 0:02:52]}  f4 {[%clk 0:02:49]} 12. Bf2 {[%clk 0:02:52]}  Nf6 {[%clk 0:02:49]} 13. c5 {[%clk 0:02:49]}  Ne8 {[%clk 0:02:49]} 14. Rc1 {[%clk 0:02:48]}  g5 {[%clk 0:02:49]} 15. cxd6 {[%clk 0:02:40]}  cxd6 {[%clk 0:02:49]} 16. Qc2 {[%clk 0:02:24]}  Ng6 {[%clk 0:02:38]} 17. Nb5 {[%clk 0:02:21]}  Rf7 {[%clk 0:02:26]} 18. Nxa7 {[%clk 0:02:18]}  Bd7 {[%clk 0:02:27]} 19. Bb5 {[%clk 0:02:16]}  h5 {[%clk 0:02:20]} 20. Bxd7 {[%clk 0:02:12]}  Qxd7 {[%clk 0:02:20]} 21. Nc8 {[%clk 0:02:00]}  Rxa2 {[%clk 0:02:13]} 22. Nb6 {[%clk 0:02:00]}  Qe7 {[%clk 0:02:10]} 23. Nd3 {[%clk 0:01:51]}  g4 {[%clk 0:02:08]} 24. Qc8 {[%clk 0:01:45]}  g3 {[%clk 0:01:49]} 25. Be1 {[%clk 0:01:33]}  gxh2+ {[%clk 0:01:47]} 26. Kh1 {[%clk 0:01:34]}  Ra6 {[%clk 0:01:44]} 27. Nc4 {[%clk 0:01:18]}  Rf8 {[%clk 0:01:40]} 28. Bb4 {[%clk 0:00:59]}  Nf6 {[%clk 0:01:13]} 29. Qe6+ {[%clk 0:00:42]}  Qxe6 {[%clk 0:01:13]} 30. dxe6 {[%clk 0:00:43]}  Ne8 {[%clk 0:01:12]} 31. Ra1 {[%clk 0:00:18]}  Rc6 {[%clk 0:01:09]} 32. b3 {[%clk 0:00:15]}  Bf6 {[%clk 0:01:02]} 33. Ra8 {[%clk 0:00:14]}  Be7 {[%clk 0:01:02]} 34. Rb8 {[%clk 0:00:12]}  Ng7 {[%clk 0:00:57]} 35. Rxb7 {[%clk 0:00:10]}  Nxe6 {[%clk 0:00:57]} 36. Ndxe5 {[%clk 0:00:09]}  dxe5 {[%clk 0:00:48]} 37. Bxe7 {[%clk 0:00:09]}  Rf7 {[%clk 0:00:48]} 38. Rb8+ {[%clk 0:00:08]}  Kh7 {[%clk 0:00:48]} 39. Bd6 {[%clk 0:00:09]}  Nd4 {[%clk 0:00:37]} 40. Nxe5 {[%clk 0:00:05]}  Nxe5 {[%clk 0:00:35]} 41. Bxe5 {[%clk 0:00:06]}  Ne2 {[%clk 0:00:34]} 42. Rf2 {[%clk 0:00:04]}  Rc1+ {[%clk 0:00:32]} 43. Kxh2 {[%clk 0:00:04]}  Ng3 {[%clk 0:00:28]} 44. Bxf4 {[%clk 0:00:03]}  Nf1+ {[%clk 0:00:25]} 45. Rxf1 {[%clk 0:00:02]}  Rxf1 {[%clk 0:00:25]} 0-1


[Site "https://www.chess.com"]

[Event "Titled Tuesday Blitz January 17 Early 2023"]
[White "Tasev, Dejan"]
[Black "Vaglio Munoz, Jaime"]
[WhiteFideId "936618"]
[BlackFideId "6500145"]
[WhiteElo "2205"]
[BlackElo "2174"]
[Result "1-0"]
[Round "11"]
[TimeControl "180+2"]
[Date "2023.01.17"]
[WhiteClock "0:00:27"]
[BlackClock "0:00:29"]

1. e4 {[%clk 0:03:00]}  c5 {[%clk 0:02:58]} 2. Nf3 {[%clk 0:03:00]}  Qa5 {[%clk 0:02:43]} 3. Nc3 {[%clk 0:03:01]}  a6 {[%clk 0:02:42]} 4. g3 {[%clk 0:02:58]}  b5 {[%clk 0:02:42]} 5. Bg2 {[%clk 0:02:57]}  Bb7 {[%clk 0:02:42]} 6. d3 {[%clk 0:02:51]}  b4 {[%clk 0:02:41]} 7. Ne2 {[%clk 0:02:49]}  e6 {[%clk 0:02:40]} 8. O-O {[%clk 0:02:48]}  Nf6 {[%clk 0:02:39]} 9. a3 {[%clk 0:02:47]}  d5 {[%clk 0:02:37]} 10. e5 {[%clk 0:02:43]}  Nfd7 {[%clk 0:02:36]} 11. Bd2 {[%clk 0:02:43]}  Qb6 {[%clk 0:02:35]} 12. axb4 {[%clk 0:02:41]}  cxb4 {[%clk 0:02:35]} 13. d4 {[%clk 0:02:40]}  Nc6 {[%clk 0:02:33]} 14. c3 {[%clk 0:02:40]}  a5 {[%clk 0:02:33]} 15. Nf4 {[%clk 0:02:36]}  Be7 {[%clk 0:02:31]} 16. h4 {[%clk 0:02:36]}  h6 {[%clk 0:02:30]} 17. Re1 {[%clk 0:02:34]}  O-O {[%clk 0:02:19]} 18. Nh2 {[%clk 0:02:30]}  Rfb8 {[%clk 0:02:09]} 19. Qh5 {[%clk 0:02:28]}  Nf8 {[%clk 0:02:05]} 20. Ng4 {[%clk 0:02:20]}  bxc3 {[%clk 0:02:00]} 21. Nxh6+ {[%clk 0:02:05]}  gxh6 {[%clk 0:01:57]} 22. Qxh6 {[%clk 0:02:04]}  Nd7 {[%clk 0:01:41]} 23. Nh5 {[%clk 0:01:59]}  Bf8 {[%clk 0:01:39]} 24. Qg5+ {[%clk 0:01:56]}  Kh8 {[%clk 0:01:38]} 25. bxc3 {[%clk 0:01:52]}  Qb2 {[%clk 0:01:33]} 26. Rac1 {[%clk 0:01:38]}  Ba6 {[%clk 0:01:31]} 27. Bf1 {[%clk 0:01:27]}  Bxf1 {[%clk 0:01:30]} 28. Rxf1 {[%clk 0:01:24]}  Qa3 {[%clk 0:01:25]} 29. Nf6 {[%clk 0:01:22]}  Nxf6 {[%clk 0:01:22]} 30. exf6 {[%clk 0:01:20]}  Nxd4 {[%clk 0:00:57]} 31. Qh5+ {[%clk 0:01:12]}  Kg8 {[%clk 0:00:56]} 32. Qg4+ {[%clk 0:01:01]}  Kh8 {[%clk 0:00:55]} 33. Qh5+ {[%clk 0:00:53]}  Kg8 {[%clk 0:00:55]} 34. cxd4 {[%clk 0:00:43]}  Qd3 {[%clk 0:00:53]} 35. Bf4 {[%clk 0:00:42]}  Rc8 {[%clk 0:00:46]} 36. Rce1 {[%clk 0:00:38]}  a4 {[%clk 0:00:43]} 37. Re5 {[%clk 0:00:36]}  Qg6 {[%clk 0:00:32]} 38. Rg5 {[%clk 0:00:35]}  Ra7 {[%clk 0:00:30]} 39. Rxg6+ {[%clk 0:00:30]}  fxg6 {[%clk 0:00:31]} 40. Qxg6+ {[%clk 0:00:30]}  Kh8 {[%clk 0:00:31]} 41. f7 {[%clk 0:00:29]}  Bg7 {[%clk 0:00:31]} 42. Be5 {[%clk 0:00:28]}  Rxf7 {[%clk 0:00:30]} 43. Qxf7 {[%clk 0:00:27]}  Rg8 {[%clk 0:00:29]} 44. Qh5# {[%clk 0:00:27]} 1-0


[Site "https://www.chess.com"]